{"text_format":"1","workbook":"xlsx","n_sheets":7,"sheets":["0000000","Cover Page","Labor","Environmental","Health & Safety","Ethics","Sheet1"],"not_rendered":{"charts":0,"images":0,"macros":1,"external_links":0,"defined_names":5,"comments":0,"pivot_tables":0},"unopened":[],"bounds":{"document_bytes":16777216,"sheet_cells":100000,"rows_first":2000,"rows_last":500,"rows_between":2000,"halvings":0,"cell_chars":16384,"cell_head_chars":4096},"cells_cut":0,"cells_raw":0,"read":"whole","date_system":"1900"}

{"sheet":"0000000","index":0,"n_rows":0,"n_cols":0,"rows_kept":0,"cut":false,"hidden":true,"merged":[]}

{"sheet":"Cover Page","index":1,"n_rows":45,"n_cols":14,"rows_kept":45,"cut":false,"hidden":false,"merged":[[42,1,42,2],[42,4,42,6],[18,1,18,2],[17,1,17,2],[19,1,19,2],[20,1,20,2],[34,12,38,12],[32,11,32,13],[33,5,33,6],[33,7,33,8],[33,9,33,11],[3,0,3,13],[4,0,4,13],[6,0,6,13],[14,0,14,2],[22,0,22,13]]}
[]
[null,null,null,null,null,null,null,null,null,null,null,null,null,"Page 1 of  5"]
[]
["CSR Assessment : Supplier Assessment Report"]
[" รายงานการประเมินผู้ส่งมอบ/ผู้รับเหมาช่วงตามข้อกำหนด CSR"]
[]
["  Supplier information (ข้อมูลผู้ส่งมอบ/ ผู้รับเหมาช่วง) : "]
["Company name (ชื่อบริษัท) :"]
["Address (ที่อยู่) :"]
["Telephone (โทรศัพท์) :"]
["Fax (โทรสาร) :"]
["Contact person name / e-mail / phone (ชื่อ / e-mail / โทรศัพท์ ผู้ติดต่อ) :  "]
["Labor (ด้านแรงงาน) :"]
["Environmental  (ด้านสิ่งแวดล้อม) :"]
["Health & Safety (ด้านอาชีวอนามัยและความปลอดภัย) :"]
[]
["Number of workers :",null,"Total",null,null,"Male",null,null,null,"Female"]
["Certification:","Labor"]
[null,"Environmental"]
[null,"Health & Safety"]
[null,"Others"]
[]
["Audit result (complete by company)"]
["Audit date:"]
[]
["Audit team:"]
["Labor"]
["Environmental"]
["Health & Safety"]
["Ethics"]
[]
["Evaluation score (ผลการประเมิน) "]
[]
[null,null,"Level Score:",null,"Score","Passed",null,"Not Passed",null,"Required action"]
[" - Labor",null,null,null,{"$f":"Labor!W43","v":0}]
[" - Environmental ",null,null,null,{"$f":"Environmental!W26","v":0}]
[" - Health and Safety ",null,null,null,{"$f":"'Health & Safety'!W33","v":0}]
[" - Ethics",null,null,null,{"$f":"Ethics!W34","v":0}]
[null,null,null,"Total Score",{"$f":"AVERAGE(E35:E38)","v":0}]
[]
[]
["Approved by :"]
[null,"HR. Manager",null,null,"CSR MR",null,null,null,null,"Supply Chain Manager"]
[]
[null,"Date ",null,null,"Date ",null,null,null,null,"Date "]

{"sheet":"Labor","index":2,"n_rows":49,"n_cols":25,"rows_kept":49,"cut":false,"hidden":false,"merged":[[68,21,68,22],[19,1,19,18],[15,1,15,18],[27,1,27,18],[20,1,20,18],[39,1,39,18],[16,1,16,18],[33,1,33,18],[31,1,31,18],[32,1,32,18],[38,1,38,18],[25,1,25,18],[35,1,35,18],[36,1,36,18],[37,1,37,18],[26,1,26,18],[17,1,17,18],[18,1,18,18],[24,1,24,18],[4,19,4,22],[3,19,3,22],[5,22,7,22],[5,0,5,18],[21,1,21,18],[6,0,6,18],[8,1,8,18],[9,1,9,18],[10,1,10,18],[11,1,11,18],[12,1,12,18],[14,1,14,18],[13,1,13,18],[28,1,28,18],[29,1,29,18],[22,1,22,18],[23,1,23,18],[34,1,34,18],[30,1,30,18]]}
[]
[null,null,null,null,null,null,null,null,null,null,null,null,null,null,null,null,null,null,null,null,null,null,"Page 2 of  5"]
[]
[null,null,null,null,null,null,null,null,null,null,null,null,null,null,null,null,null,null,null,"Please put score for each point and see summary below"]
[null,null,null,null,null,null,null,null,null,null,null,null,null,null,null,null,null,null,null,"ระบุคะแนนของแต่ละข้อเพื่อรวมเป็น % ในบรรทัดสรุป"]
["Labor",null,null,null,null,null,null,null,null,null,null,null,null,null,null,null,null,null,null,"สอดคล้อง","ไม่สอดคล้อง","ไม่เกี่ยวข้องกับประเภทธุรกิจ","ความคิดเห็นผู้ตรวจประเมิน\nAuditor comments"]
[null,null,null,null,null,null,null,null,null,null,null,null,null,null,null,null,null,null,null,"Comply","Not comply","Not Concern"]
[null,null,null,null,null,null,null,null,null,null,null,null,null,null,null,null,null,null,"Score :  คะแนนของแต่ละข้อ  >>   ","(1)","(0)","(-1)"]
[1,"Freely Chosen Employment (อิสระในการเลือกทำงาน) :",null,null,null,null,null,null,null,null,null,null,null,null,null,null,null,null,null,null,null,null,null,null,{"$f":"COUNTIF(Y10:Y40,2)","v":0}]
[1.1000000000000001,"There are no forced,  involuntary prison labor, slavery (ไม่มีแรงงานบังคับ, นักโทษ, ทาส)",null,null,null,null,null,null,null,null,null,null,null,null,null,null,null,null,null,null,null,null,null,null,{"$f":"COUNTIF(T10:U10,\"X\")","v":0}]
[1.2,"All work will be voluntary, and workers shall be free to leave upon reasonable notice (ใช้แรงงานสมัครใจ และลูกจ้างสามารถลาออกได้โดยชี้แจงเป็นลายลักษณ์อักษร)",null,null,null,null,null,null,null,null,null,null,null,null,null,null,null,null,null,null,null,null,null,null,{"$f":"COUNTIF(T11:U11,\"X\")","v":0}]
[1.3,"Workers shall not be required to hand over government-issued identification, passports or work permits to the Participant or Labor Agent as a condition of employment (ไม่ยึดบัตรประชาชนหรือพาสปอร์ตตัวจริงของลูกจ้าง เป็นเงื่อนไขในการจ้างงาน)",null,null,null,null,null,null,null,null,null,null,null,null,null,null,null,null,null,null,null,null,null,null,0]
[1.4,"Workers are not required to pay fees, deposits or debt repayments for their employment (ไม่เก็บเงินค่าธรรมเนียม, เงินมัดจำ จากลูกจ้าง)",null,null,null,null,null,null,null,null,null,null,null,null,null,null,null,null,null,null,null,null,null,null,0]
[1.5,"Is any restriction placed on employees' freedom of movement and leaving after working hours? \nมีการหวงห้ามเสรีภาพในการเคลื่อนไหวของบุคคล และห้ามออกจากพื้นที่ทำงานหรือสถานประกอบกิจการหลังจากสิ้นสุดชั่วโมงทำงานหรือไม่ ",null,null,null,null,null,null,null,null,null,null,null,null,null,null,null,null,null,null,null,null,null,null,{"$f":"COUNTIF(T14:U14,\"X\")","v":0}]
[1.6,"Are employees required to make deposits of money or valuable items to secure work or in return for any work related items?\nมีการร้องของให้พนักงานฝากเงินหรือทรัพย์สินที่มีค่าเพื่อเป็นหลักประกันการทำงานหรือไม่"]
[2,"Freedom of Association  (อิสระในการมีส่วนร่วม สมาคม) :",null,null,null,null,null,null,null,null,null,null,null,null,null,null,null,null,null,null,null,null,null,null,{"$f":"COUNTIF(T16:U16,\"X\")","v":0}]
[2.1,"Is there  any employee organization established as legal ? \nมีการจัดตั้งองค์กรลูกจ้างในสถานประกอบกิจการตามกฎหมายกำหนดหรือไม่ ",null,null,null,null,null,null,null,null,null,null,null,null,null,null,null,null,null,null,null,null,null,null,{"$f":"COUNTIF(T17:U17,\"X\")","v":0}]
[2.2000000000000002,"Do employees elect their welfare committee? \nคณะกรรมการสวัสดิการสวัสดิการได้มาจากการเลือกตั้งหรือไม่  ",null,null,null,null,null,null,null,null,null,null,null,null,null,null,null,null,null,null,null,null,null,null,{"$f":"COUNTIF(T18:U18,\"X\")","v":0}]
[2.2999999999999998,"Are regularly meeting between employee's welfare representative and management and are meeting minutes recorded? \nคณะกรรมการสวัสดิการและผู้บริหารมีการประชุมเป็นประจำรือไม่ และมีบันทึกการประชุมหรือไม่",null,null,null,null,null,null,null,null,null,null,null,null,null,null,null,null,null,null,null,null,null,null,{"$f":"COUNTIF(T19:U19,\"X\")","v":0}]
[3,"Children and young employees/workers (เด็กและแรงงานผู้เยาว์) :",null,null,null,null,null,null,null,null,null,null,null,null,null,null,null,null,null,null,null,null,null,null,0]
[3.1,"Child labor; under the age of 15 is not to be used in any stage of manufacturing (ไม่ใช้แรงงานเด็ก; อายุต่ำกว่า 15 ปี ทำงานในทุกกิจกรรมในโรงงาน) ",null,null,null,null,null,null,null,null,null,null,null,null,null,null,null,null,null,null,null,null,null,null,0]
[3.2,"Is there have any employees/workers at this site, above the legal minimum age of employment but under the age of 18?\nคุณมีพนักงานที่มีอายุเกินกว่าที่กฎหมายกำหนดแต่ไม่ถึง 18 ปีหรือไม่",null,null,null,null,null,null,null,null,null,null,null,null,null,null,null,null,null,null,null,null,null,null,0]
[3.3,"Workers under the age of 18 shall not perform work that is likely to jeopardize the health or safety of young workers (ไม่ให้แรงงานที่มีอายุต่ำกว่า 18  ทำงานที่อาจเป็นอันตรายต่อแรงงานเยาวชน)",null,null,null,null,null,null,null,null,null,null,null,null,null,null,null,null,null,null,null,null,null,null,0]
[3.4,"Is there have personnel records which include copies of evidence of the date of birth of each employee/worker at this site?\nมีบันทึกส่วนตัวของพนักงานซึ่งรวมถึงสำเนาหลักฐานของวันเดือนปีเกิดของพนักงานแต่ละคนหรือไม่",null,null,null,null,null,null,null,null,null,null,null,null,null,null,null,null,null,null,null,null,null,null,0]
[3.5,"Other อื่น ๆ",null,null,null,null,null,null,null,null,null,null,null,null,null,null,null,null,null,null,null,null,null,null,{"$f":"COUNTIF(T25:U25,\"X\")","v":0}]
[4,"Wage and Benefit  (ค่าจ้างและผลตอบแทน) :",null,null,null,null,null,null,null,null,null,null,null,null,null,null,null,null,null,null,null,null,null,null,0]
[4.0999999999999996,"Compensation paid to workers shall comply with all applicable wage laws, including those relating to minimum wages and overtime hours. (ค่าตอบแทนที่จ่ายให้ลูกจ้าง ต้องเป็นไปตามที่กฎหมายกำหนด ซึ่งรวมถึง อัตราค่าจ้างขั้นต่ำ, อัตราการจ่ายค่าล่วงเวลา ตามที่กฎหมายกำหนด)",null,null,null,null,null,null,null,null,null,null,null,null,null,null,null,null,null,null,null,null,null,null,0]
[4.2,"The wages are paid in a timely manner; regularly and fully in legal tender. (มีการจ่ายค่าจ้างตรงเวลาอย่างสม่ำเสมอและครบถ้วนตามกฎหมาย)\n",null,null,null,null,null,null,null,null,null,null,null,null,null,null,null,null,null,null,null,null,null,null,0]
[4.3,"The workers with the legally mandated benefits that are legally granted. (มีสวัสดิการที่ได้รับตามกฎหมายหรือไม่)",null,null,null,null,null,null,null,null,null,null,null,null,null,null,null,null,null,null,null,null,null,null,{"$f":"COUNTIF(T29:U29,\"X\")","v":0}]
[4.4000000000000004,"The deductions are only taken under the conditions and to the extent prescribed by the law. (การหักเงินจะดำเนินการภายใต้เงื่อนไขและตามขอบเขตที่กฎหมายกำหนดเท่านั้น)",null,null,null,null,null,null,null,null,null,null,null,null,null,null,null,null,null,null,null,null,null,null,0]
[5,"Working Hours  (ชั่วโมงการทำงาน) :",null,null,null,null,null,null,null,null,null,null,null,null,null,null,null,null,null,null,null,null,null,null,{"$f":"COUNTIF(T31:U31,\"X\")","v":0}]
[5.0999999999999996,"The regular working hours does not exceed 48 hours per week. (ชั่วโมงการทำงานปกติไม่เกิน 48 ชั่วโมงต่อสัปดาห์)",null,null,null,null,null,null,null,null,null,null,null,null,null,null,null,null,null,null,null,null,null,null,{"$f":"COUNTIF(T32:U32,\"X\")","v":0}]
[5.2,"The working hours in a workweeks does not exceed 60 hours. Except in emergency or unusual situations. (ชั่วโมงการทำงานต่อสัปดาห์ ต้องไม่เกิน 60 ชม. ยกเว้นกรณีฉุกเฉิน หรือสถานการณ์ที่ไม่ปกติ)",null,null,null,null,null,null,null,null,null,null,null,null,null,null,null,null,null,null,null,null,null,null,{"$f":"COUNTIF(T33:U33,\"X\")","v":0}]
[5.3,"Workers shall be allowed at least one day off per seven-day week. (ลูกจ้าง ต้องได้รับวันหยุดอย่างน้อย 1 วัน ใน 1 สัปดาห์)",null,null,null,null,null,null,null,null,null,null,null,null,null,null,null,null,null,null,null,null,null,null,{"$f":"COUNTIF(T34:U34,\"X\")","v":0}]
[5.4,"Workers are allowed legally mandated breaks, holidays and vacation days to which they are leglly entitled.  (ลูกจ้างต้องได้รับสิทธิตามกฎหมาย ในเวลาพัก วันหยุดนักขัตฤกษ์ วันหยุดพักผ่อน)",null,null,null,null,null,null,null,null,null,null,null,null,null,null,null,null,null,null,null,null,null,null,{"$f":"COUNTIF(T35:U35,\"X\")","v":0}]
[6,"Humane Treatment  (การปฏิบัติต่อแรงงานอย่างมีมนุษยธรรม) :",null,null,null,null,null,null,null,null,null,null,null,null,null,null,null,null,null,null,null,null,null,null,0]
[6.1,"The Participant's disciplinary policies and procedures shall be clearly defined and communicated to workers (ต้องกำหนดนโยบายและขั้นตอนการลงโทษที่ชัดเจน และสื่อสารไปยังลูกจ้าง)",null,null,null,null,null,null,null,null,null,null,null,null,null,null,null,null,null,null,null,null,null,null,0]
[6.2,"There is to be no harsh and inhumane treatment, including any sexual harassment, sexual abuse, corporal punishment, mental or physical coercion or verbal abuse of workers: nor is there to be the threat of any such treatment.  (ไม่ปฏิบัติต่อลูกจ้างอย่างไร้มนุษยธรรม รวมถึงการล่วงละเมิดทางเพศ ไม่ลงโทษโดยการทำร้ายร่างกาย จิตใจ หรือการบังคับ ขู่เข็ญ หรือดุด่า หรือโดยวิธีอื่นๆ ที่คล้ายกัน",null,null,null,null,null,null,null,null,null,null,null,null,null,null,null,null,null,null,null,null,null,null,0]
[7,"Non-Discrimination  (ไม่เลือกปฏิบัติ) :",null,null,null,null,null,null,null,null,null,null,null,null,null,null,null,null,null,null,null,null,null,null,0]
[7.1,"Companies shall not engage in discrimination based on race, color, age, gender, sexual orientation, ethnicity, disability, pregnancy, religion, political affiliation, union membership or marital status in hiring and employment practices such as promotions, rewards, and access to training.  (ไม่เลือกปฎิบัติต่อลูกจ้างในเรื่อง เชื้อชาติ, สีผิว, อายุ, เพศ, ความพิการ, การตั้งครรภ์, ศาสนา, การเมือง, การเป็นสมาชิกสหภาพแรงงาน หรือสถานภาพสมรส ในการจ้างงาน, การเลื่อนขั้น เลื่อนตำแหน่ง, การให้รางวัล และการเข้าถึงการฝึกอบรม)",null,null,null,null,null,null,null,null,null,null,null,null,null,null,null,null,null,null,null,null,null,null,0]
[null,null,null,null,null,null,null,null,null,null,null,null,null,null,null,null,"Score - คะแนน",null,null,{"$f":"COUNTIF(T9:T40,\"X\")","v":0},{"$f":"COUNTIF(U9:U40,\"X\")","v":0},{"$f":"SUM(V9:V40)","v":0}]
[]
[null,null,null,null,null,null,null,null,null,null,null,null,null,null,null,null,null,null,null,"Total Score ( รวมคะแนน)   %",null,null,{"$f":"T41/15","v":0}]
[null,null,null,null,null,null,null,null,null,null,null,null,null,null,null,null,null,null,"Total score shall be exceed 70% (คะแนนรวมไม่ต่ำกว่า 70%)"]
[null,"Scored By: ",null,null,null,null,null,null,null,null,null,null,null,"Date: "]
[null,"ผู้ประเมิน",null,"(                                                                            )",null,null,null,null,null,null,null,null,null,"(วันที่)"]
[]
[null,"Comments:"]
[null,"(ข้อเสนอแนะ)"]

{"sheet":"Environmental","index":3,"n_rows":32,"n_cols":24,"rows_kept":32,"cut":false,"hidden":false,"merged":[[51,21,51,22],[21,1,21,18],[22,1,22,18],[15,1,15,18],[16,1,16,18],[8,1,8,18],[18,1,18,18],[10,1,10,18],[20,1,20,18],[12,1,12,18],[13,1,13,18],[9,1,9,18],[17,1,17,18],[11,1,11,18],[19,1,19,18],[14,1,14,18],[3,19,3,22],[4,19,4,22],[5,0,5,18],[5,22,7,22],[6,0,6,18]]}
[]
[null,null,null,null,null,null,null,null,null,null,null,null,null,null,null,null,null,null,null,null,null,null,"Page 3 of  5"]
[]
[null,null,null,null,null,null,null,null,null,null,null,null,null,null,null,null,null,null,null,"Please put score for each point and see summary below"]
[null,null,null,null,null,null,null,null,null,null,null,null,null,null,null,null,null,null,null,"ระบุคะแนนของแต่ละข้อเพื่อรวมเป็น % ในบรรทัดสรุป"]
["Environmental",null,null,null,null,null,null,null,null,null,null,null,null,null,null,null,null,null,null,"สอดคล้อง","ไม่สอดคล้อง","ไม่เกี่ยวข้องกับประเภทธุรกิจ","ความคิดเห็นผู้ตรวจประเมิน\nAuditor comments"]
[null,null,null,null,null,null,null,null,null,null,null,null,null,null,null,null,null,null,null,"Comply","Not comply","Not Concern"]
[null,null,null,null,null,null,null,null,null,null,null,null,null,null,null,null,null,null,"Score :  คะแนนของแต่ละข้อ  >>   ","(1)","(0)","(-1)"]
[1,"Environmental Permits and Reporting  (การปฎิบัติและการรายงานสิ่งแวดล้อมตามกฎหมาย) :",null,null,null,null,null,null,null,null,null,null,null,null,null,null,null,null,null,null,null,null,null,{"$f":"COUNTIF(X10:X30,2)","v":0}]
[1.1000000000000001,"All required environmental permits approvals and registrations are to be obtained, maintained and kept current and their operational and reporting requirements to be followed.  (มีการจัดการสิ่งแวดล้อมตามที่กฎหมายกำหนด และเก็บใบอนุญาตไว้เป็นหลักฐาน รวมถึงการจัดการและการรายงานสิ่งแวดล้อมตามที่กฎหมายกำหนด)",null,null,null,null,null,null,null,null,null,null,null,null,null,null,null,null,null,null,null,null,null,{"$f":"COUNTIF(T10:U10,\"X\")","v":0}]
[2,"Pollution Prevention and Resource Reduction  (การป้องกันมลพิษและการลดการใช้ทรัพยากร) :",null,null,null,null,null,null,null,null,null,null,null,null,null,null,null,null,null,null,null,null,null,{"$f":"COUNTIF(T11:U11,\"X\")","v":0}]
[2.1,"Established adequate and effective programs, including targets, to : a) eliminate, reduce or control pollution (emissions, discharges, wastes) and b) conserve resources (energy, water, materials) in place.  (จัดทำโครงการ ที่มีเป้าหมายเพื่อ ก) กำจัด ลดปริมาณ ควบคุม มลภาวะ (การแพร่กระจาย การปลดปล่อย การสิ้นเปลือง) และ ข) ประหยัดทรัพยากร (พลังงาน น้ำ วัตถุดิบ)",null,null,null,null,null,null,null,null,null,null,null,null,null,null,null,null,null,null,null,null,null,0]
[3,"Hazardous Substances  (สารเคมีอันตราย) :",null,null,null,null,null,null,null,null,null,null,null,null,null,null,null,null,null,null,null,null,null,0]
[3.1,"Hazardous materials including wastes are properly categorized, labeled, handled, stored, transported and disposed using government-approved/licensed vendors as per laws.  (มีการคัดแยก ชี้บ่ง เคลื่อนย้าย จัดเก็บ ขนส่ง และกำจัด วัตถุดิบที่เป็นอันตราย รวมถึงของเสียอันตราย โดยผู้ประกอบการกำจัดที่ได้รับอนุญาต ตามที่กฎหมายกำหนด)",null,null,null,null,null,null,null,null,null,null,null,null,null,null,null,null,null,null,null,null,null,0]
[3.2,"Workers who work with hazardous substances are provided adequate and effective training.  (พนักงานที่ทำงานกับสารเคมีอันตราย ต้องได้รับการอบรมอย่างเพียงพอและมีประสิทธิภาพ)",null,null,null,null,null,null,null,null,null,null,null,null,null,null,null,null,null,null,null,null,null,0]
[3.3,"Waste vendor (s) have been Audited to verify that waste is handled, stored and disposed of in accordance with regulation, permit conditions and contract requirements.  (มีการตรวจสอบผู้รับกำจัดของเสีย เพื่อทวนสอบถึงการปฏิบัติ การจัดเก็บ และการทำลาย สอดคล้องตามข้อกำหนดกฎหมาย  และใบอนุญาต) ",null,null,null,null,null,null,null,null,null,null,null,null,null,null,null,null,null,null,null,null,null,0]
[4,"Wastewater and Solid Waste (น้ำเสีย และของเสีย) :",null,null,null,null,null,null,null,null,null,null,null,null,null,null,null,null,null,null,null,null,null,0]
[4.0999999999999996,"Wastewater and solid waste generated from operations, industrial processes and sanitation facilities are to be characterized, monitored, controlled and treated as required prior to discharge or disposal.  (เฝ้าระวัง ควบคุม และจัดการ น้ำเสียและของเสียที่เกิดจากกระบวนการผลิต และสาธารณูปโภค ก่อนปล่อยลงสู่ภายนอก หรือกำจัด)",null,null,null,null,null,null,null,null,null,null,null,null,null,null,null,null,null,null,null,null,null,0]
[5,"Air Emissions  (การปล่อยของเสียออกสู่อากาศ)  :",null,null,null,null,null,null,null,null,null,null,null,null,null,null,null,null,null,null,null,null,null,0]
[5.0999999999999996,"Air emissions meet the discharge limits for regulated constituents.  (ค่าการปล่อยอากาศเสียต้องไม่เกินตามที่กฎหมายกำหนด)",null,null,null,null,null,null,null,null,null,null,null,null,null,null,null,null,null,null,null,null,null,0]
[5.2,"Environmental noise levels are within regulatory limits.  (ระดับเสียงของสภาวะแวดล้อมต้องไม่เกินค่าที่กฎหมายกำหนด)",null,null,null,null,null,null,null,null,null,null,null,null,null,null,null,null,null,null,null,null,null,0]
[6,"Product Content Restrictions  (การจำกัดปริมาณการใช้สารเคมี) :",null,null,null,null,null,null,null,null,null,null,null,null,null,null,null,null,null,null,null,null,null,0]
[6.1,"Participants are to adhere to all applicable laws, regulations and customer requirements regarding prohibition or restriction of specific substances, including labeling for recycling and disposal.  (ต้องปฏิบัติตามกฎหมาย ระเบียบ และความต้องการลูกค้าที่เกี่ยวข้องกับการห้ามหรือการจำกัด การใช้สารที่กำหนด รวมถึงติดฉลากการนำมาใช้ซ้ำหรือการกำจัด)",null,null,null,null,null,null,null,null,null,null,null,null,null,null,null,null,null,null,null,null,null,0]
[null,null,null,null,null,null,null,null,null,null,null,null,null,null,null,null,"Score - คะแนน",null,null,{"$f":"COUNTIF(T10:T23,\"X\")","v":0},{"$f":"COUNTIF(U10:U23,\"X\")","v":0},{"$f":"SUM(V9:V23)","v":0}]
[]
[null,null,null,null,null,null,null,null,null,null,null,null,null,null,null,null,null,null,null,"Total Score ( รวมคะแนน)   %",null,null,{"$f":"T24/9","v":0}]
[null,null,null,null,null,null,null,null,null,null,null,null,null,null,null,null,null,null,"Total score shall be exceed 70% (คะแนนรวมไม่ต่ำกว่า 70%)"]
[null,"Scored By: ",null,null,null,null,null,null,null,null,null,null,null,"Date: "]
[null,"ผู้ประเมิน",null,"(                                                                            )",null,null,null,null,null,null,null,null,null,"(วันที่)"]
[]
[null,"Comments:"]
[null,"(ข้อเสนอแนะ)"]

{"sheet":"Health & Safety","index":4,"n_rows":39,"n_cols":24,"rows_kept":39,"cut":false,"hidden":false,"merged":[[19,1,19,18],[20,1,20,18],[28,1,28,18],[29,1,29,18],[21,1,21,18],[56,21,56,22],[22,1,22,18],[23,1,23,18],[24,1,24,18],[25,1,25,18],[26,1,26,18],[27,1,27,18],[13,1,13,18],[16,1,16,18],[17,1,17,18],[18,1,18,18],[8,1,8,18],[9,1,9,18],[10,1,10,18],[11,1,11,18],[12,1,12,18],[14,1,14,18],[15,1,15,18],[3,19,3,22],[4,19,4,22],[5,0,5,18],[5,22,7,22],[6,0,6,18]]}
[]
[null,null,null,null,null,null,null,null,null,null,null,null,null,null,null,null,null,null,null,null,null,null,"Page 4 of  5"]
[]
[null,null,null,null,null,null,null,null,null,null,null,null,null,null,null,null,null,null,null,"Please put score for each point and see summary below"]
[null,null,null,null,null,null,null,null,null,null,null,null,null,null,null,null,null,null,null,"ระบุคะแนนของแต่ละข้อเพื่อรวมเป็น % ในบรรทัดสรุป"]
["Health and Safety",null,null,null,null,null,null,null,null,null,null,null,null,null,null,null,null,null,null,"สอดคล้อง","ไม่สอดคล้อง","ไม่เกี่ยวข้องกับประเภทธุรกิจ","ความคิดเห็นผู้ตรวจประเมิน\nAuditor comments"]
[null,null,null,null,null,null,null,null,null,null,null,null,null,null,null,null,null,null,null,"Comply","Not comply","Not Concern"]
[null,null,null,null,null,null,null,null,null,null,null,null,null,null,null,null,null,null,"Score :  คะแนนของแต่ละข้อ  >>   ","(1)","(0)","(-1)"]
[1,"Occupational Safety  (ความปลอดภัยในการทำงาน) :",null,null,null,null,null,null,null,null,null,null,null,null,null,null,null,null,null,null,null,null,null,{"$f":"COUNTIF(X10:X31,2)","v":0}]
[1.1000000000000001,"Worker exposure to potential safety hazards (e.g., electrical and other energy sources, fire, vehicles, and fall hazards) are to be controlled through proper design, engineering and administrative controls, preventative maintenance and safe work procedures, and ongoing safety training.  (จุดที่อาจเป็นอันตรายต่อลูกจ้าง (เช่น ไฟฟ้า และแหล่งพลังงานอื่นๆ, ไฟไหม้, ยานพาหนะ, การลื่น, เลื่อน, การทำให้ล้ม และอันตรายจากการตกของสิ่งของ) ต้องได้รับการแก้ไขและป้องกันอย่างเหมาะสม มีวิธีปฏิบัติงานอย่างปลอดภัย และมีการฝึกอบรมเรื่องความปลอดภัยอย่างต่อเนื่อง)",null,null,null,null,null,null,null,null,null,null,null,null,null,null,null,null,null,null,null,null,null,{"$f":"COUNTIF(T10:U10,\"X\")","v":0}]
[1.2,"Appropriate Personal Protective Equipment (PPE) is consistently and correctly used where hazards cannot be adequately controlled.  (ต้องมีอุปกรณ์ป้องกันภัยส่วนบุคคล PPE อย่างเหมาะสม ในจุดที่ไม่สามารถควบคุมอันตรายที่จะเกิดขึ้นได้)",null,null,null,null,null,null,null,null,null,null,null,null,null,null,null,null,null,null,null,null,null,{"$f":"COUNTIF(T11:U11,\"X\")","v":0}]
[2,"Emergency Preparedness  (การเตรียมแผนภาวะฉุกเฉิน) :",null,null,null,null,null,null,null,null,null,null,null,null,null,null,null,null,null,null,null,null,null,0]
[2.1,"The facility has installed an adequate amount of and properly working firefighting equipment.  (สถานประกอบการได้ติดตั้งอุปกรณ์ดับเพลิงในปริมาณที่เพียงพอและใช้งานได้อย่างเหมาะสม)",null,null,null,null,null,null,null,null,null,null,null,null,null,null,null,null,null,null,null,null,null,0]
[2.2000000000000002,"The facility ensures that escape routes, aisles and emergency exits in the production site are not blocked, easily accessible and clearly marked. (สถานประกอบการช่วยให้มั่นใจได้ว่าทางหนีทางเดินและทางออกฉุกเฉินในสถานที่ผลิตจะไม่ถูกกีดขวางเข้าถึงได้ง่ายและมีการทำเครื่องหมายไว้อย่างชัดเจน)",null,null,null,null,null,null,null,null,null,null,null,null,null,null,null,null,null,null,null,null,null,0]
[2.2999999999999998,"The facility ensures evacuations plans meet legal requirements and that these plans are  posted in relevant places so workers can see and understand them. (แผนผังเส้นทางอพยพหนีไฟติดไว้ทุกพื้นที่ มองเห็นชัดเจนและเข้าใจได้)",null,null,null,null,null,null,null,null,null,null,null,null,null,null,null,null,null,null,null,null,null,{"$f":"COUNTIF(T15:U15,\"X\")","v":0}]
[2.4,"Designated emergency plan, response procedure, employee notification, evacuation procedure, recovery plan, worker training and drills.  (มีการกำหนดแผนฉุกเฉิน ขั้นตอนการตอบสนอง ขั้นตอนการแจ้งเตือนพนักงาน การอพยพ แผนฟื้นฟู การฝึกอบรมและฝึกปฏิบัติให้กับลูกจ้าง)  ",null,null,null,null,null,null,null,null,null,null,null,null,null,null,null,null,null,null,null,null,null,0]
[3,"Occupational Injury and Illness  (การบาดเจ็บและเจ็บป่วยจากการทำงาน) :",null,null,null,null,null,null,null,null,null,null,null,null,null,null,null,null,null,null,null,null,null,0]
[3.1,"Procedure and systems are to be in place to prevent, manage, track and report occupational injury and illness.  (มีขั้นตอนและระบบในการป้องกัน จัดการ วัดผล และรายงานการบาดเจ็บและการเจ็บป่วยจากการทำงาน)",null,null,null,null,null,null,null,null,null,null,null,null,null,null,null,null,null,null,null,null,null,0]
[4,"Industrial Hygiene  (สุขศาสตร์) :",null,null,null,null,null,null,null,null,null,null,null,null,null,null,null,null,null,null,null,null,null,0]
[4.0999999999999996,"Workers exposure to chemical, biological and physical agents is to be identified, evaluated and controlled.  (ชี้บ่ง ประเมิน และควบคุม อันตรายอันอาจเกิดขึ้นกับลูกจ้าง ที่เกี่ยวกับสารเคมี ชีวภาพ และกายภาพ)",null,null,null,null,null,null,null,null,null,null,null,null,null,null,null,null,null,null,null,null,null,0]
[4.2,"Engineering or administrative controls must be used to control over exposures.  (ต้องมีการควบคุมทางวิศวกรรมและการจัดการ ในอันตรายที่อาจเกิดขึ้นต่อสุขภาพลูกจ้าง)",null,null,null,null,null,null,null,null,null,null,null,null,null,null,null,null,null,null,null,null,null,0]
[4.3,"When hazards connot be adequately controlled by such means, worker health is to be protected by appropriate personal protective equipment programs.  (กรณีอันตรายนั้นไม่สามารถควบคุมได้เพียงพอ ต้องจัดหาอุปกรณ์ป้องกันภัยส่วนบุคคล (PPE) ให้ )",null,null,null,null,null,null,null,null,null,null,null,null,null,null,null,null,null,null,null,null,null,0]
[5,"Physically Demanding Work  (การยศาสตร์) :  ",null,null,null,null,null,null,null,null,null,null,null,null,null,null,null,null,null,null,null,null,null,0]
[5.0999999999999996,"Workers exposure to the harzards of physically demanding tasks, including manual material handling and heavy or repetitive lifting, prolonged standing and highly repetitive or forceful assembly tasks is to be identified, evaluated and controlled.  (ต้องชี้บ่ง ประเมิน และควบคุมอันตรายทางการยศาสตร์ รวมถึงต้องมีคู่มือการยกของหนัก หรือการทำงานในท่าซ้ำๆ การลากของหนัก การเคลื่อนย้ายของหนัก)",null,null,null,null,null,null,null,null,null,null,null,null,null,null,null,null,null,null,null,null,null,0]
[6,"Machine Safeguarding  (เครื่องป้องกันอันตรายเกี่ยวกับเครื่องจักร) :",null,null,null,null,null,null,null,null,null,null,null,null,null,null,null,null,null,null,null,null,null,0]
[61,"Production and other machinery is to be evaluated for safety hazards.  (ประเมินอันตรายจากการทำงานกับเครื่องจักรในกระบวนการผลิตหรือเครื่องจักรอื่นๆ)",null,null,null,null,null,null,null,null,null,null,null,null,null,null,null,null,null,null,null,null,null,0]
[6.2,"Physical guards, interlocks and barriers are to be provided and properly maintained where machinery presents an injury hazard to workers.  (จัดหาเครื่องป้องกันอันตรายต่อร่างกาย (guard) และบำรุงรักษาเครื่องจักร (PM) ที่อาจทำให้เกิดอันตรายจากการบาดเจ็บของลูกจ้าง)",null,null,null,null,null,null,null,null,null,null,null,null,null,null,null,null,null,null,null,null,null,0]
[7,"Sanitation, Food, and Housing  (สุขอนามัย อาหาร และที่พัก)",null,null,null,null,null,null,null,null,null,null,null,null,null,null,null,null,null,null,null,null,null,0]
[7.1,"Workers are to be provided with ready access to clean toilet facilities, potable water and sanitary food preparation, storage, and eating facilities.  (จัดหาห้องส้วม น้ำดื่ม และที่จัดเดรียมอาหาร ที่จัดเก็บอาหาร และสถานที่รับประทานอาหาร ที่ถูกสุขลักษณะ)",null,null,null,null,null,null,null,null,null,null,null,null,null,null,null,null,null,null,null,null,null,0]
[7.2,"Workers dormitories provided by the company is to be maintained clean and safe, and provided with appropriate emergency exit and adequate ventilation and reasonable personal space along with reasonable entry and exit privileges.  (หอพักลูกจ้างที่จัดให้โดยบริษัท ต้องสะอาด ปลอดภัย และมีทางออกฉุกเฉิน และการระบายอากาศ และมีพื้นที่ภายในห้องเหมาะสม)",null,null,null,null,null,null,null,null,null,null,null,null,null,null,null,null,null,null,null,null,null,0]
[null,null,null,null,null,null,null,null,null,null,null,null,null,null,null,null,"Score - คะแนน",null,null,{"$f":"COUNTIF(T10:T30,\"X\")","v":0},{"$f":"SUM(U9:U30)","v":0},{"$f":"SUM(V9:V30)","v":0},null,0]
[null,null,null,null,null,null,null,null,null,null,null,null,null,null,null,null,null,null,null,null,null,null,null,0]
[null,null,null,null,null,null,null,null,null,null,null,null,null,null,null,null,null,null,null,"Total Score ( รวมคะแนน)   %",null,null,{"$f":"T31/14","v":0},0]
[null,null,null,null,null,null,null,null,null,null,null,null,null,null,null,null,null,null,"Total score shall be exceed 70% (คะแนนรวมไม่ต่ำกว่า 70%)",null,null,null,null,0]
[null,"Scored By: ",null,null,null,null,null,null,null,null,null,null,null,"Date: "]
[null,"ผู้ประเมิน",null,"(                                                                            )",null,null,null,null,null,null,null,null,null,"(วันที่)"]
[]
[null,"Comments:"]
[null,"(ข้อเสนอแนะ)"]

{"sheet":"Ethics","index":5,"n_rows":45,"n_cols":24,"rows_kept":45,"cut":false,"hidden":false,"merged":[[21,1,21,18],[24,1,24,18],[25,1,25,18],[59,21,59,22],[23,1,23,18],[26,1,26,18],[27,1,27,18],[29,1,29,18],[28,1,28,18],[30,1,30,18],[22,1,22,18],[17,1,17,18],[18,1,18,18],[19,1,19,18],[20,1,20,18],[8,1,8,18],[10,1,10,18],[11,1,11,18],[14,1,14,18],[9,1,9,18],[12,1,12,18],[13,1,13,18],[15,1,15,18],[16,1,16,18],[3,19,3,22],[4,19,4,22],[5,0,5,18],[5,22,7,22],[6,0,6,18]]}
[]
[null,null,null,null,null,null,null,null,null,null,null,null,null,null,null,null,null,null,null,null,null,null,"Page 5 of  5"]
[]
[null,null,null,null,null,null,null,null,null,null,null,null,null,null,null,null,null,null,null,"Please put score for each point and see summary below"]
[null,null,null,null,null,null,null,null,null,null,null,null,null,null,null,null,null,null,null,"ระบุคะแนนของแต่ละข้อเพื่อรวมเป็น % ในบรรทัดสรุป"]
["Ethics",null,null,null,null,null,null,null,null,null,null,null,null,null,null,null,null,null,null,"สอดคล้อง","ไม่สอดคล้อง","ไม่เกี่ยวข้องกับประเภทธุรกิจ","ความคิดเห็นผู้ตรวจประเมิน\nAuditor comments"]
[null,null,null,null,null,null,null,null,null,null,null,null,null,null,null,null,null,null,null,"Comply","Not comply","Not Concern"]
[null,null,null,null,null,null,null,null,null,null,null,null,null,null,null,null,null,null,"Score :  คะแนนของแต่ละข้อ  >>   ","(1)","(0)","(-1)"]
[1,"Business Intergrity  (การยึกหลักคุณธรรมในการดำเนินธุรกิจ)",null,null,null,null,null,null,null,null,null,null,null,null,null,null,null,null,null,null,null,null,null,{"$f":"COUNTIF(X10:X47,2)","v":0}]
[1.1000000000000001,"Adequate and effective code of business ethics or standards of business conduct, endorsed by senior management is established.  (มีการกำหนดระเบียบปฏิบัติทางธุรกิจของบริษัทในเรื่องจริยธรรมในการดำเนินธุรกิจ ลงนามโดยผู้บริหารระดับสูง)",null,null,null,null,null,null,null,null,null,null,null,null,null,null,null,null,null,null,null,null,null,{"$f":"COUNTIF(T10:U10,\"X\")","v":0}]
[1.2,"All employees are provided adequate and effective communication/training on the code of ethical conduct.  (พนักงานทั้งหมดต้องได้รับการสื่อสาร/ฝึกอบรม ในเรื่องระเบียบปฏิบัติเรื่องจริยธรรมอย่างเหมาะสมและเพียงพอ)",null,null,null,null,null,null,null,null,null,null,null,null,null,null,null,null,null,null,null,null,null,{"$f":"COUNTIF(T11:U11,\"X\")","v":0}]
[1.3,"Business ethics/integrity procedures are communicated effectively to all subcontractors, suppliers, business partners and relevant parties.  (มีการสื่อสารระเบียบปฎิบัติเรื่องจริยธรรมในการดำเนินธุรกิจ ไปยังผู้รับจ้างช่วง ผู้ขาย คู่ค้า และผู้ที่เกี่ยวข้อง)",null,null,null,null,null,null,null,null,null,null,null,null,null,null,null,null,null,null,null,null,null,0]
[2,"No Improper Advantage  (การได้รับผลประโยชน์อย่างไม่เหมาะสม)",null,null,null,null,null,null,null,null,null,null,null,null,null,null,null,null,null,null,null,null,null,0]
[2.1,"Bribes or other means of obtaining undue or improper advantage are not to be offered or accepted.  (ต้องไม่นำเสนอหรือยอมรับการให้สินบนหรือวิธีการอื่นเพื่อให้ได้ผลประโยชน์มาอย่างไม่เหมาะสม)",null,null,null,null,null,null,null,null,null,null,null,null,null,null,null,null,null,null,null,null,null,0]
[2.2000000000000002,"Effective and written policy that ensures gifts to or from suppliers and customers is not excessive in cost is established.  (มีการกำหนดนโยบาย เพื่อให้มั่นใจว่าการรับของขวัญจากผู้ขาย และการให้ของขวัญลูกค้า ซึ่งมีมูลค่าไม่มากจนเกินไป)",null,null,null,null,null,null,null,null,null,null,null,null,null,null,null,null,null,null,null,null,null,0]
[3,"Disclosure of Information  (การเปิดเผยข้อมูล)",null,null,null,null,null,null,null,null,null,null,null,null,null,null,null,null,null,null,null,null,null,0]
[3.1,"Information regarding business activities, structure, financial situation and performance is to be sisclosed in accordance with applicable regulations and prevailing industry practices.  (ข้อมูลทางธุรกิจ โครงสร้าง สถานะทางการเงิน และผลการปฏิบัติงาน จะต้องถูกเปิดเผยตามระเบียบปฏิบัติทางธุรกิจ - การชำระภาษีอย่างถูกต้อง)",null,null,null,null,null,null,null,null,null,null,null,null,null,null,null,null,null,null,null,null,null,0]
[4,"Intellectual Property  (ทรัพย์สินทางปัญญา)",null,null,null,null,null,null,null,null,null,null,null,null,null,null,null,null,null,null,null,null,null,0]
[4.0999999999999996,"Intellectual property rights are to be respected; transfer of technology and know-how is to be done in a manner that protects intellectual property rights.  (ต้องเคารพสิทธิ ทรัพย์สินทางปัญญา เช่น เทคโนโลยี ความรู้)  ไม่ใช้ข้อมูลซอฟแวร์ที่ละเมิดลิขสิทธิ์ ไม่ลอกเลียนแบบผลิตภัณฑ์ผู้อื่นโดยผิดกฎหมาย",null,null,null,null,null,null,null,null,null,null,null,null,null,null,null,null,null,null,null,null,null,0]
[5,"Fair Business, Advertising and Competition  (การดำเนินธุรกิจ การโฆษณา และการแข่งขัน อย่างเป็นธรรม)",null,null,null,null,null,null,null,null,null,null,null,null,null,null,null,null,null,null,null,null,null,0]
[5.0999999999999996,"Standards of fair business, advertising and competition are to be upheld.  (สนับสนุนการดำเนินธุรกิจ การโฆษณา และการแข่งขัน อย่างเป็นธรรม)  ไม่เบลมคู่แข่งต่อหน้าลูกค้า ไม่โฆษณา หรือโอ้อวดสรรพคุณสินค้าของตนเกินจริง ไม่ละเลยต่อบริการหลังการขายที่ให้สัญญาไว้กับลูกค้า",null,null,null,null,null,null,null,null,null,null,null,null,null,null,null,null,null,null,null,null,null,0]
[5.2,"Appropriate means to safeguard customer information must be available.  (รักษาข้อมูลลูกค้าด้วยวิธีการที่เหมาะสม) ให้พนักงานลงนามในสัญญาการรักษาข้อมูลความลับของลูกค้า",null,null,null,null,null,null,null,null,null,null,null,null,null,null,null,null,null,null,null,null,null,0]
[6,"Protection of Identity  (การรักษาความลับ)",null,null,null,null,null,null,null,null,null,null,null,null,null,null,null,null,null,null,null,null,null,0]
[6.1,"A way to confidentially report suspected ethical misconduct is available to workers and protects them from retaliation or other consequences.  (ช่องทางในการแจ้งพฤติกรรมที่ผิดจริยธรรม และวิธีที่จะทำให้มั่นใจว่าพวกเขาเหล่านั้นจะไม่มีผลกระทบใดๆ จากการร้องเรียนนั้นๆ)",null,null,null,null,null,null,null,null,null,null,null,null,null,null,null,null,null,null,null,null,null,0]
[7,"Responsible sourcing of Minirals  (จัดหาทรัพยากรแร่ธาตุด้วยสำนึกรับผิดชอบ)",null,null,null,null,null,null,null,null,null,null,null,null,null,null,null,null,null,null,null,null,null,0]
[7.1,"A policy to reasonably assure that purchasing of the 3TG minerals does not directly or indirectly finance armed groups that are perpetrators of serious human rights abuses in the Democratic Republic of Congo or surrounding countries with an effective procedures.  (มีนโนบายที่ทำให้แน่ใจได้ว่าไม่มีการซื้อแร่แทนทาลัม ดีบุก ทังสเตน และทองคำ จากกลุ่มติดอาวุธที่ละเมิด สิทธิมนุษยชนอย่างร้ายแรง ในสาธารณรัฐประชาธิปไตยคองโก หรือประเทศที่อยู่ติดกัน ทั้งทางตรงและทางอ้อม)",null,null,null,null,null,null,null,null,null,null,null,null,null,null,null,null,null,null,null,null,null,0]
[8,"Privacy  (ความเป็นส่วนตัว)",null,null,null,null,null,null,null,null,null,null,null,null,null,null,null,null,null,null,null,null,null,0]
[8.1,"Participants are to commit to protecting the reasonable privacy expectations of personal information of everyone they do business with, including suppliers, customers, consumers and employees.  (ให้คำมั่นที่จะปกป้องข้อมูลส่วนตัวของทุกคนที่ตนร่วมทำธุรกิจด้วย รวมทั้งผู้จัดส่งวัตถุดิบ ลูกค้าและพนักงาน)",null,null,null,null,null,null,null,null,null,null,null,null,null,null,null,null,null,null,null,null,null,0]
[8.1999999999999993,"Participants are to comply with privacy and information security laws and regulatory requirements when personal information is collected, stored, processed, transmitted and shared.  (ต้องปฏิบัติตามกฎหมายว่าด้วยเรื่อง ความปลอดภัยของข้อมูลและความเป็นส่วนตัวเมื่อดำเนินการเก็บข้อมูล บันทึก ประมวลผล ส่งผ่าน และนำไปแชร์ร่วมกัน)",null,null,null,null,null,null,null,null,null,null,null,null,null,null,null,null,null,null,null,null,null,0]
[9,"Non-Retaliation  (ปราศจากการแก้แค้น)",null,null,null,null,null,null,null,null,null,null,null,null,null,null,null,null,null,null,null,null,null,0]
[9.1,"Participants should have a communicated process for their personnel to be able to raise any concerns without fear of retaliation.  (ต้องมีกระบวนการติดต่อสื่อสารกันในการที่จะแจ้งปัญหาที่เกิดขึ้น โดยไม่ทำให้เกิด ความกลัวต่อการแก้แค้นใดๆ ทั้งสิ้น)",null,null,null,null,null,null,null,null,null,null,null,null,null,null,null,null,null,null,"X",null,null,1]
[null,null,null,null,null,null,null,null,null,null,null,null,null,null,null,null,"Score - คะแนน",null,null,{"$f":"COUNTIF(T10:T31,\"X\")","v":0},{"$f":"SUM(U11:U31)","v":0},null,null,0]
[null,null,null,null,null,null,null,null,null,null,null,null,null,null,null,null,null,null,null,null,null,null,null,0]
[null,null,null,null,null,null,null,null,null,null,null,null,null,null,null,null,null,null,null,"Total Score ( รวมคะแนน)   %",null,null,{"$f":"T32/14","v":0},0]
[null,null,null,null,null,null,null,null,null,null,null,null,null,null,null,null,null,null,"Total score shall be exceed 70% (คะแนนรวมไม่ต่ำกว่า 70%)",null,null,null,null,0]
[null,"Scored By: ",null,null,null,null,null,null,null,null,null,null,null,"Date: ",null,null,null,null,null,null,null,null,null,0]
[null,"ผู้ประเมิน",null,"(                                                                            )",null,null,null,null,null,null,null,null,null,"(วันที่)",null,null,null,null,null,null,null,null,null,0]
[null,null,null,null,null,null,null,null,null,null,null,null,null,null,null,null,null,null,null,null,null,null,null,0]
[null,"Comments:",null,null,null,null,null,null,null,null,null,null,null,null,null,null,null,null,null,null,null,null,null,0]
[null,"(ข้อเสนอแนะ)",null,null,null,null,null,null,null,null,null,null,null,null,null,null,null,null,null,null,null,null,null,0]
[null,null,null,null,null,null,null,null,null,null,null,null,null,null,null,null,null,null,null,null,null,null,null,0]
[null,null,null,null,null,null,null,null,null,null,null,null,null,null,null,null,null,null,null,null,null,null,null,0]
[null,null,null,null,null,null,null,null,null,null,null,null,null,null,null,null,null,null,null,null,null,null,null,0]
[null,null,null,null,null,null,null,null,null,null,null,null,null,null,null,null,null,null,null,null,null,null,null,0]
[null,null,null,null,null,null,null,null,null,null,null,null,null,null,null,null,null,null,null,null,null,null,null,0]

{"sheet":"Sheet1","index":6,"n_rows":0,"n_cols":0,"rows_kept":0,"cut":false,"hidden":true,"merged":[]}